[Event "BLR-chW U20 2019"]
[Site "Kobryn"]
[Date "2019.05.17"]
[Round "7.1"]
[White "Shaban, Aliaksandra"]
[Black "Mitskevich, Yauheniya"]
[Result "1/2-1/2"]
[ECO "E73"]
[WhiteElo "1652"]
[BlackElo "1985"]
[Annotator "NA RC"]
[PlyCount "64"]
[EventDate "2019.05.11"]
[EventType "tourn"]
[EventCountry "BLR"]
[SourceTitle "playchess.com"]
[Source "ChessBase"]
[SourceQuality "1"]
[TimeControl "40/5400+30:1800+30"]

1. d4 {[%emt 0:00:00]} Nf6 {[%emt 0:00:16]} 2. c4 {[%emt 0:00:00]} g6 {[%emt 0:00:07]} 3. Nc3 {[%emt 0:00:00]} d6 {[%emt 0:00:06]} 4. e4 {[%emt 0:00:00]} Bg7 {[%emt 0:00:10]} 5. Be2 {[%emt 0:00:00]} O-O {[%emt 0:00:13]} 6. Bg5 {[%emt 0:00:06]} h6 {[%emt 0:00:49]} 7. Bf4 {[%emt 0:00:48]} Nfd7 {[%emt 0:02:12]} 8. Qd2 {[%emt 0:04:48]} Kh7 {[%emt 0:00:09]} 9. d5 {[%emt 0:05:28]} Nc5 {[%emt 0:05:17]} 10. h4 {[%emt 0:05:01]} e5 {[%emt 0:05:35]} 11. Be3 {[%emt 0:00:52]} f5 {[%emt 0:00:34]} 12. f3 {[%emt 0:02:57]} f4 {[%emt 0:03:26]} 13. Bf2 {[%emt 0:01:16]} a5 {[%emt 0:00:36]} 14. b3 {[%emt 0:02:47]} Nba6 {[%emt 0:02:52]} 15. g4 {[%emt 0:02:08]} Bd7 {[%emt 0:01:37]} 16. Qb2 {[%emt 0:02:07]} Qe7 {[%emt 0:04:32]} 17. Kd2 {[%emt 0:02:36]} b6 {[%emt 0:03:09]} 18. Bf1 {[%emt 0:04:08]} Rfb8 {[%emt 0:01:31]} 19. Nge2 {[%emt 0:01:15]} b5 {[%emt 0:08:33]} 20. cxb5 {[%emt 0:00:50]} Bxb5 {[%emt 0:00:21]} 21. Nxb5 {[%emt 0:00:14]} Rxb5 {[%emt 0:00:11]} 22. Nd4 {[%emt 0:04:11]} Rb6 {[%emt 0:09:41]} 23. Nc6 {[%emt 0:00:48]} Qf7 {[%emt 0:00:13]} 24. Nxa5 {[%emt 0:02:14]} Nb4 {[%emt 0:00:20]} 25. Nc4 {[%emt 0:01:08]} Rbb8 {[%emt 0:02:23]} 26. Bxc5 {[%emt 0:04:48]} dxc5 {[%emt 0:00:09]} 27. Ke2 {[%emt 0:03:17]} Nxd5 {[%emt 0:02:55]} 28. Rc1 {[%emt 0:06:19]} Nb4 {[%emt 0:01:18]} 29. a3 {[%emt 0:01:27]} Nc6 {[%emt 0:00:20]} 30. Kf2 {[%emt 0:01:36]} Nd4 {[%emt 0:00:44]} 31. Rc3 {[%emt 0:02:23]} Nb5 {[%emt 0:05:29]} 32. Rd3 {[%emt 0:01:42]} Nd4 {[%emt 0:00:59]} 1/2-1/2

[Event "BLR-chW U20 2019"]
[Site "Kobryn"]
[Date "2019.05.17"]
[Round "7.2"]
[White "Poliakova, Varvara"]
[Black "Zeliantsova, Kseniya"]
[Result "1-0"]
[ECO "B41"]
[WhiteElo "1900"]
[BlackElo "2017"]
[Annotator "NA RC"]
[PlyCount "71"]
[EventDate "2019.05.11"]
[EventType "tourn"]
[EventCountry "BLR"]
[SourceTitle "playchess.com"]
[Source "ChessBase"]
[SourceQuality "1"]
[TimeControl "40/5400+30:1800+30"]

1. e4 {[%emt 0:00:00]} c5 {[%emt 0:00:00]} 2. Nf3 {[%emt 0:00:00]} e6 {[%emt 0:00:00]} 3. d4 {[%emt 0:00:00]} cxd4 {[%emt 0:00:00]} 4. Nxd4 {[%emt 0:00:00]} a6 {[%emt 0:00:00]} 5. c4 {[%emt 0:00:01]} Nf6 {[%emt 0:00:00]} 6. Nc3 {[%emt 0:00:06]} Bb4 {[%emt 0:00:56]} 7. Qd3 {[%emt 0:01:09]} Qc7 {[%emt 0:00:30]} 8. a3 {[%emt 0:00:34]} Be7 {[%emt 0:01:41]} 9. Be2 {[%emt 0:04:33]} Nc6 {[%emt 0:01:14]} 10. Nxc6 {[%emt 0:01:20]} dxc6 {[%emt 0:00:06]} 11. Qg3 {[%emt 0:00:39]} Qxg3 {[%emt 0:10:04]} 12. hxg3 {[%emt 0:01:28]} e5 {[%emt 0:00:41]} 13. Be3 {[%emt 0:04:08]} b5 {[%emt 0:06:11]} 14. f3 {[%emt 0:09:28]} Be6 {[%emt 0:02:49]} 15. Kf2 {[%emt 0:02:22]} O-O {[%emt 0:02:22]} 16. Rac1 {[%emt 0:03:52]} Rfd8 {[%emt 0:11:12]} 17. Rhd1 {[%emt 0:03:14]} Nd7 {[%emt 0:02:41]} 18. f4 {[%emt 0:05:17]} g6 {[%emt 0:20:34]} 19. cxb5 {[%emt 0:06:58]} axb5 {[%emt 0:00:13]} 20. Nb1 {[%emt 0:02:37]} Bb3 {[%emt 0:09:37]} 21. Rd3 {[%emt 0:04:46]} Bc4 {[%emt 0:00:14]} 22. Rd2 {[%emt 0:00:39]} Bxe2 {[%emt 0:09:00]} 23. Kxe2 {[%emt 0:00:28]} Rac8 {[%emt 0:02:42]} 24. Kf3 {[%emt 0:03:20]} f6 {[%emt 0:02:38]} 25. Rdc2 {[%emt 0:05:28]} c5 {[%emt 0:01:23]} 26. Nc3 {[%emt 0:00:13]} Rb8 {[%emt 0:00:20]} 27. Nd5 {[%emt 0:00:52]} Bd6 {[%emt 0:01:08]} 28. Rd2 {[%emt 0:02:08]} Kf7 {[%emt 0:05:05]} 29. Rcd1 {[%emt 0:01:18]} Ke6 {[%emt 0:00:42]} 30. Nc3 {[%emt 0:02:38]} Nb6 {[%emt 0:03:01]} 31. Bxc5 {[%emt 0:03:48]} Nc4 {[%emt 0:00:48]} 32. Rd5 {[%emt 0:00:34]} Bc7 {[%emt 0:01:53]} 33. b3 {[%emt 0:03:22]} Na5 {[%emt 0:04:03]} 34. b4 {[%emt 0:01:51]} Nc6 {[%emt 0:00:05]} 35. Rxd8 {[%emt 0:00:31]} Bxd8 {[%emt 0:00:03]} 36. Rd6+ {[%emt 0:00:08]} 1-0

[Event "BLR-chW U20 2019"]
[Site "Kobryn"]
[Date "2019.05.17"]
[Round "7.3"]
[White "Staravoitava, Hanna"]
[Black "Kuzich, Aryna"]
[Result "1-0"]
[ECO "A03"]
[WhiteElo "1733"]
[BlackElo "1800"]
[Annotator "NA RC"]
[PlyCount "53"]
[EventDate "2019.05.11"]
[EventType "tourn"]
[EventCountry "BLR"]
[SourceTitle "playchess.com"]
[Source "ChessBase"]
[SourceQuality "1"]
[TimeControl "40/5400+30:1800+30"]

1. f4 {[%emt 0:00:00]} d5 {[%emt 0:00:09]} 2. Nf3 {[%emt 0:00:00]} c5 {[%emt 0:00:33]} 3. e3 {[%emt 0:00:12]} Nf6 {[%emt 0:02:03]} 4. d3 {[%emt 0:00:40]} b6 {[%emt 0:10:02]} 5. Be2 {[%emt 0:02:35]} e6 {[%emt 0:02:51]} 6. Nbd2 {[%emt 0:03:35]} Bb7 {[%emt 0:01:10]} 7. Ne5 {[%emt 0:02:17]} Bd6 {[%emt 0:05:30]} 8. Ndf3 {[%emt 0:01:41]} O-O {[%emt 0:03:45]} 9. O-O {[%emt 0:00:52]} Qc7 {[%emt 0:05:15]} 10. Bd2 {[%emt 0:18:27]} Nbd7 {[%emt 0:07:45]} 11. Qe1 {[%emt 0:07:05]} Nxe5 {[%emt 0:11:22]} 12. fxe5 {[%emt 0:00:28]} Bxe5 {[%emt 0:00:05]} 13. Nxe5 {[%emt 0:00:05]} Qxe5 {[%emt 0:00:05]} 14. Rf3 {[%emt 0:05:55]} Qd6 {[%emt 0:02:41]} 15. Qh4 {[%emt 0:01:12]} e5 {[%emt 0:02:46]} 16. Raf1 {[%emt 0:06:32]} Nd7 {[%emt 0:13:15]} 17. Rh3 {[%emt 0:05:02]} h6 {[%emt 0:01:56]} 18. Bg4 {[%emt 0:09:26]} Nf6 {[%emt 0:10:14]} 19. Bf5 {[%emt 0:01:17]} Nh7 {[%emt 0:06:33]} 20. e4 {[%emt 0:00:45]} dxe4 {[%emt 0:00:33]} 21. Bxh6 {[%emt 0:00:48]} gxh6 {[%emt 0:04:37]} 22. Bxh7+ {[%emt 0:00:54]} Kg7 {[%emt 0:00:40]} 23. Rg3+ {[%emt 0:11:57]} Kxh7 {[%emt 0:01:54]} 24. Rf6 {[%emt 0:00:13]} Qxf6 {[%emt 0:00:14]} 25. Qxf6 {[%emt 0:00:07]} Rg8 {[%emt 0:00:13]} 26. Qxf7+ {[%emt 0:00:24]} Kh8 {[%emt 0:00:04]} 27. Rh3 {[%emt 0:02:16]} 1-0

[Event "BLR-chW U20 2019"]
[Site "Kobryn"]
[Date "2019.05.17"]
[Round "7.5"]
[White "Tarasenka, Aliaksandra"]
[Black "Stashis, Anna"]
[Result "1/2-1/2"]
[ECO "B01"]
[WhiteElo "1875"]
[BlackElo "1902"]
[Annotator "NA RC"]
[PlyCount "59"]
[EventDate "2019.05.11"]
[EventType "tourn"]
[EventCountry "BLR"]
[SourceTitle "playchess.com"]
[Source "ChessBase"]
[SourceQuality "1"]
[TimeControl "40/5400+30:1800+30"]

1. e4 {[%emt 0:00:00]} d5 {[%emt 0:00:00]} 2. exd5 {[%emt 0:00:00]} Qxd5 {[%emt 0:00:00]} 3. Nc3 {[%emt 0:00:00]} Qd6 {[%emt 0:00:12]} 4. d4 {[%emt 0:00:20]} Nf6 {[%emt 0:00:23]} 5. Nf3 {[%emt 0:01:43]} a6 {[%emt 0:00:14]} 6. Ne5 {[%emt 0:02:36]} Nc6 {[%emt 0:18:46]} 7. Nxc6 {[%emt 0:08:48]} Qxc6 {[%emt 0:00:44]} 8. Bf4 {[%emt 0:06:34]} Bg4 {[%emt 0:09:05]} 9. f3 {[%emt 0:21:14]} Bf5 {[%emt 0:00:58]} 10. Qe2 {[%emt 0:07:26]} e6 {[%emt 0:13:17]} 11. O-O-O {[%emt 0:04:55]} O-O-O {[%emt 0:02:41]} 12. Qc4 {[%emt 0:13:59]} Qxc4 {[%emt 0:01:30]} 13. Bxc4 {[%emt 0:02:47]} Bb4 {[%emt 0:02:16]} 14. a3 {[%emt 0:06:32]} Bxc3 {[%emt 0:02:45]} 15. bxc3 {[%emt 0:00:06]} Nd5 {[%emt 0:00:26]} 16. Bd2 {[%emt 0:01:19]} Rd6 {[%emt 0:01:38]} 17. Bb3 {[%emt 0:01:46]} Nb6 {[%emt 0:06:14]} 18. Bf4 {[%emt 0:09:49]} Rc6 {[%emt 0:02:48]} 19. Kb2 {[%emt 0:00:46]} Nc4+ {[%emt 0:04:40]} 20. Ka2 {[%emt 0:00:31]} Bg6 {[%emt 0:08:48]} 21. h4 {[%emt 0:02:18]} f6 {[%emt 0:02:08]} 22. Rhe1 {[%emt 0:01:51]} Bf7 {[%emt 0:00:38]} 23. Re2 {[%emt 0:04:16]} Nb6 {[%emt 0:11:19]} 24. Kb2 {[%emt 0:00:25]} Nc4+ {[%emt 0:00:35]} 25. Ka2 {[%emt 0:00:05]} Nb6 {[%emt 0:00:53]} 26. Kb2 {[%emt 0:00:05]} Nc4+ {[%emt 0:00:40]} 27. Ka2 {[%emt 0:00:04]} Nb6 {[%emt 0:00:23]} 28. Kb2 {[%emt 0:00:42]} Nc4+ {[%emt 0:00:06]} 29. Ka2 {[%emt 0:00:06]} Nb6 {[%emt 0:00:06]} 30. Kb2 {[%emt 0:00:05]} 1/2-1/2

[Event "BLR-chW U20 2019"]
[Site "Kobryn"]
[Date "2019.05.18"]
[Round "8.1"]
[White "Kuzich, Aryna"]
[Black "Poliakova, Varvara"]
[Result "1-0"]
[ECO "C51"]
[WhiteElo "1800"]
[BlackElo "1900"]
[Annotator "NA"]
[PlyCount "43"]
[EventDate "2019.05.11"]
[EventType "tourn"]
[EventCountry "BLR"]
[SourceTitle "playchess.com"]
[Source "ChessBase"]
[SourceQuality "1"]
[TimeControl "40/5400+30:1800+30"]

1. e4 {[%emt 0:00:00]} e5 {[%emt 0:00:00]} 2. Nf3 {[%emt 0:00:00]} Nc6 {[%emt 0:00:00]} 3. Bc4 {[%emt 0:00:00]} Bc5 {[%emt 0:00:00]} 4. b4 {[%emt 0:00:08]} Bxb4 {[%emt 0:00:40]} 5. c3 {[%emt 0:00:07]} Bd6 {[%emt 0:00:20]} 6. d4 {[%emt 0:03:39]} Nf6 {[%emt 0:02:06]} 7. dxe5 {[%emt 0:09:38]} Nxe5 {[%emt 0:16:07]} (7... Bxe5 $11 8. Ng5 d5 9. exd5 Na5) 8. Nxe5 {[%emt 0:01:53]} Bxe5 {[%emt 0:00:02]} 9. f4 {[%emt 0:07:26]} d5 {[%emt 0:02:53]} (9... Bd6 $16 {was necessary.}) 10. fxe5 {[%emt 0:03:50]} Nxe4 $18 {[%emt 0:00:52]} (10... Bg4 {keeps fighting.} 11. Qd4 dxc4) 11. Qxd5 {[%emt 0:15:04]} Qh4+ {[%emt 0:00:07]} 12. g3 {[%emt 0:01:24]} Nxg3 {[%emt 0:00:06]} 13. Qxf7+ {[%emt 0:01:35]} Kd8 {[%emt 0:00:01]} 14. Qd5+ {[%emt 0:00:33]} Ke8 {[%emt 0:00:40]} 15. hxg3 {[%emt 0:03:25]} Qxg3+ {[%emt 0:00:12]} 16. Kd1 {[%emt 0:01:37]} Rf8 {[%emt 0:07:13]} 17. e6 {[%emt 0:15:16]} c6 {[%emt 0:02:36]} 18. Qe4 {[%emt 0:01:28]} Rf6 {[%emt 0:04:05]} 19. Rxh7 {[%emt 0:05:25]} Qg1+ {[%emt 0:01:54]} 20. Kc2 {[%emt 0:00:25]} c5 {[%emt 0:00:20]} 21. Be3 {[%emt 0:01:39]} Qg3 {[%emt 0:01:15]} 22. Rh8+ {[%emt 0:00:17]} 1-0

[Event "BLR-chW U20 2019"]
[Site "Kobryn"]
[Date "2019.05.18"]
[Round "8.2"]
[White "Stashis, Anna"]
[Black "Mitskevich, Yauheniya"]
[Result "1/2-1/2"]
[ECO "C45"]
[WhiteElo "1902"]
[BlackElo "1985"]
[Annotator "NA"]
[PlyCount "62"]
[EventDate "2019.05.11"]
[EventType "tourn"]
[EventCountry "BLR"]
[SourceTitle "playchess.com"]
[Source "ChessBase"]
[SourceQuality "1"]
[TimeControl "40/5400+30:1800+30"]

1. e4 e5 2. Nf3 Nc6 3. d4 exd4 4. Nxd4 Nf6 5. Nxc6 bxc6 6. e5 Qe7 7. Qe2 Nd5 8. Nd2 g6 9. Nf3 Bg7 10. c4 Ba6 11. Bg5 f6 12. exf6 Qxe2+ 13. Bxe2 Nxf6 14. O-O-O Ne4 15. Be3 $14 Rb8 16. Bd4 Bxd4 17. Rxd4 Nf6 18. Ne5 O-O 19. Bf3 c5 20. Rf4 d6 21. Nc6 Rbe8 22. h4 Nd7 23. Rxf8+ Kxf8 24. b3 Ne5 25. Nxe5 Rxe5 26. Kd2 Bc8 27. h5 g5 28. Bd5 Kg7 29. f3 Bd7 30. Be4 h6 31. Bg6 c6 1/2-1/2

[Event "BLR-chW U20 2019"]
[Site "Kobryn"]
[Date "2019.05.18"]
[Round "8.3"]
[White "Zeliantsova, Kseniya"]
[Black "Shaban, Aliaksandra"]
[Result "1-0"]
[ECO "B11"]
[WhiteElo "2017"]
[BlackElo "1652"]
[Annotator "NA"]
[PlyCount "149"]
[EventDate "2019.05.11"]
[EventType "tourn"]
[EventCountry "BLR"]
[SourceTitle "playchess.com"]
[Source "ChessBase"]
[SourceQuality "1"]
[TimeControl "40/5400+30:1800+30"]

1. e4 {[%emt 0:00:00]} c6 {[%emt 0:00:00]} 2. Nf3 {[%emt 0:00:00]} d5 {[%emt 0:00:00]} 3. Nc3 {[%emt 0:00:00]} Bg4 {[%emt 0:00:24]} 4. h3 {[%emt 0:00:00]} Bxf3 {[%emt 0:01:07]} 5. Qxf3 {[%emt 0:00:00]} e6 {[%emt 0:00:40]} 6. exd5 {[%emt 0:03:01]} exd5 {[%emt 0:01:20]} 7. d4 {[%emt 0:00:30]} Bd6 {[%emt 0:02:12]} 8. Qg4 {[%emt 0:02:47]} Qf6 {[%emt 0:08:46]} (8... g6 $14) 9. Qc8+ {[%emt 0:01:36]} Qd8 {[%emt 0:00:30]} 10. Qxb7 {[%emt 0:00:20]} Qe7+ {[%emt 0:00:40]} 11. Qxe7+ {[%emt 0:00:06]} Nxe7 {[%emt 0:00:06]} 12. Bd3 {[%emt 0:00:06]} Nd7 {[%emt 0:02:17]} 13. O-O {[%emt 0:00:52]} O-O {[%emt 0:00:46]} 14. Re1 {[%emt 0:02:00]} Rfe8 {[%emt 0:03:44]} 15. Bd2 {[%emt 0:07:13]} Nf8 {[%emt 0:04:48]} 16. Ne2 {[%emt 0:05:50]} Ne6 $16 {[%emt 0:02:52]} 17. c3 {[%emt 0:05:48]} Rf8 {[%emt 0:32:22]} 18. b4 {[%emt 0:04:34]} Rfb8 {[%emt 0:02:15]} 19. Nc1 {[%emt 0:00:59]} a5 {[%emt 0:02:32]} 20. bxa5 {[%emt 0:00:12]} Rxa5 {[%emt 0:00:02]} 21. Nb3 {[%emt 0:00:34]} Ra3 {[%emt 0:01:09]} 22. Reb1 {[%emt 0:07:28]} Rba8 {[%emt 0:08:15]} 23. Nc1 {[%emt 0:05:51]} Bf4 {[%emt 0:01:41]} 24. Bxf4 {[%emt 0:08:23]} Nxf4 {[%emt 0:00:02]} 25. Bf1 {[%emt 0:00:15]} Rxc3 {[%emt 0:10:40]} 26. a4 {[%emt 0:03:30]} c5 {[%emt 0:01:36]} 27. dxc5 {[%emt 0:02:06]} Rxc5 {[%emt 0:00:10]} 28. a5 {[%emt 0:00:17]} Ne6 {[%emt 0:02:40]} 29. a6 {[%emt 0:00:17]} Nc8 {[%emt 0:00:48]} 30. Rb7 {[%emt 0:05:05]} Nd8 {[%emt 0:04:41]} 31. Rd7 {[%emt 0:05:10]} Nb6 {[%emt 0:00:06]} 32. Re7 {[%emt 0:00:06]} Kf8 {[%emt 0:00:14]} 33. Re3 {[%emt 0:00:56]} Nc6 {[%emt 0:02:41]} 34. Nb3 {[%emt 0:00:07]} Rc2 {[%emt 0:00:02]} 35. Bb5 {[%emt 0:01:32]} Na7 {[%emt 0:00:56]} 36. Bd3 {[%emt 0:00:29]} Rc3 {[%emt 0:00:55]} 37. Nd4 {[%emt 0:02:30]} Nc4 {[%emt 0:01:26]} 38. Rg3 {[%emt 0:03:50]} Ne5 {[%emt 0:00:37]} 39. Be2 {[%emt 0:00:35]} Rc7 {[%emt 0:02:09]} 40. Rb3 {[%emt 0:00:00]} Nec6 {[%emt 0:00:00]} 41. Nxc6 {[%emt 0:16:40]} Nxc6 {[%emt 0:05:44]} 42. Rd1 {[%emt 0:00:57]} Re7 {[%emt 0:01:41]} 43. Bb5 {[%emt 0:01:43]} Nb8 {[%emt 0:08:11]} 44. Ra3 {[%emt 0:02:48]} Rea7 {[%emt 0:00:57]} 45. Re1 {[%emt 0:02:19]} Nxa6 {[%emt 0:10:38]} 46. Rea1 {[%emt 0:00:09]} Nc7 {[%emt 0:01:48]} 47. Rxa7 {[%emt 0:00:05]} Rxa7 {[%emt 0:00:01]} 48. Rxa7 {[%emt 0:00:06]} Nxb5 {[%emt 0:00:06]} 49. Rd7 {[%emt 0:00:22]} Nc3 {[%emt 0:01:36]} 50. Kf1 {[%emt 0:01:00]} Ke8 {[%emt 0:00:07]} 51. Rc7 {[%emt 0:00:07]} Ne4 {[%emt 0:00:41]} 52. Ke2 {[%emt 0:00:49]} h6 {[%emt 0:01:55]} 53. Ke3 {[%emt 0:01:02]} g6 {[%emt 0:01:31]} 54. Kd4 {[%emt 0:09:13]} Nxf2 {[%emt 0:01:06]} 55. Rc2 {[%emt 0:00:04]} Ne4 {[%emt 0:01:00]} 56. Kxd5 {[%emt 0:00:05]} Ng5 {[%emt 0:01:42]} 57. Ke5 {[%emt 0:00:55]} Nh7 {[%emt 0:00:54]} 58. Rc8+ {[%emt 0:01:45]} Ke7 {[%emt 0:00:01]} 59. Rh8 {[%emt 0:02:23]} Nf6 {[%emt 0:00:08]} 60. Rxh6 {[%emt 0:00:17]} Nd7+ {[%emt 0:00:29]} 61. Kd4 {[%emt 0:00:20]} Nf8 {[%emt 0:00:46]} 62. Rh4 {[%emt 0:00:28]} Ne6+ {[%emt 0:00:17]} 63. Ke5 {[%emt 0:00:51]} Nc5 {[%emt 0:00:31]} 64. Rc4 {[%emt 0:00:45]} Nd7+ {[%emt 0:00:06]} 65. Kf4 {[%emt 0:00:05]} Kd6 {[%emt 0:00:37]} 66. Kg5 {[%emt 0:00:33]} f6+ {[%emt 0:00:26]} 67. Kf4 {[%emt 0:03:15]} Ne5 {[%emt 0:00:13]} 68. Ra4 {[%emt 0:01:30]} Nd3+ {[%emt 0:00:15]} 69. Ke3 {[%emt 0:00:11]} Nc5 {[%emt 0:00:23]} 70. Rg4 {[%emt 0:00:34]} g5 {[%emt 0:00:13]} 71. g3 {[%emt 0:00:17]} Ke5 {[%emt 0:00:16]} 72. h4 {[%emt 0:00:24]} gxh4 {[%emt 0:01:20]} 73. gxh4 {[%emt 0:00:05]} Ne6 {[%emt 0:00:31]} 74. h5 {[%emt 0:00:53]} Kf5 {[%emt 0:00:46]} 75. h6 {[%emt 0:00:47]} 1-0

[Event "BLR-chW U20 2019"]
[Site "Kobryn"]
[Date "2019.05.18"]
[Round "8.4"]
[White "Tarasenka, Aliaksandra"]
[Black "Dolbieva, Ksenia"]
[Result "1/2-1/2"]
[ECO "B56"]
[WhiteElo "1875"]
[BlackElo "1847"]
[Annotator "NA"]
[PlyCount "59"]
[EventDate "2019.05.11"]
[EventType "tourn"]
[EventCountry "BLR"]
[SourceTitle "playchess.com"]
[Source "ChessBase"]
[SourceQuality "1"]
[TimeControl "40/5400+30:1800+30"]

1. e4 {[%emt 0:00:00]} c5 {[%emt 0:00:00]} 2. Nf3 {[%emt 0:00:00]} d6 {[%emt 0:00:00]} 3. d4 {[%emt 0:00:00]} cxd4 {[%emt 0:00:00]} 4. Nxd4 {[%emt 0:00:00]} Nc6 {[%emt 0:00:00]} 5. Nc3 {[%emt 0:00:48]} Nf6 {[%emt 0:00:03]} 6. Nde2 {[%emt 0:04:21]} e6 {[%emt 0:02:07]} 7. g3 {[%emt 0:00:19]} a6 {[%emt 0:00:40]} 8. Bg2 {[%emt 0:00:21]} Qc7 {[%emt 0:00:08]} 9. O-O {[%emt 0:00:55]} Be7 {[%emt 0:00:16]} 10. h3 {[%emt 0:01:01]} b5 {[%emt 0:00:25]} 11. a3 {[%emt 0:01:47]} Bb7 {[%emt 0:00:11]} 12. Be3 {[%emt 0:02:04]} Rd8 {[%emt 0:02:12]} 13. g4 $15 {[%emt 0:14:35]} d5 {[%emt 0:07:38]} 14. exd5 {[%emt 0:06:08]} Ne5 {[%emt 0:02:52]} 15. Nf4 {[%emt 0:11:03]} Nc4 {[%emt 0:05:48]} 16. Qc1 {[%emt 0:04:28]} e5 {[%emt 0:11:47]} 17. g5 {[%emt 0:12:07]} Nxe3 {[%emt 0:12:02]} 18. gxf6 {[%emt 0:04:04]} gxf6 {[%emt 0:09:15]} 19. Qxe3 {[%emt 0:03:55]} exf4 {[%emt 0:00:10]} 20. Qe4 {[%emt 0:00:58]} Ba8 {[%emt 0:08:08]} 21. Rfe1 {[%emt 0:05:47]} Kf8 {[%emt 0:01:14]} 22. Qf5 {[%emt 0:04:48]} Rg8 {[%emt 0:05:46]} 23. Re4 {[%emt 0:04:43]} Rg6 {[%emt 0:06:49]} 24. Qxf4 {[%emt 0:09:02]} Qxf4 {[%emt 0:01:11]} 25. Rxf4 {[%emt 0:00:04]} Bxd5 {[%emt 0:00:27]} 26. Nxd5 {[%emt 0:00:36]} Rxd5 {[%emt 0:00:04]} 27. Rg4 {[%emt 0:00:34]} Rd2 {[%emt 0:00:49]} 28. Be4 {[%emt 0:00:57]} Rxg4+ {[%emt 0:01:16]} 29. hxg4 {[%emt 0:00:03]} Bc5 {[%emt 0:00:20]} 30. Rf1 {[%emt 0:00:58]} 1/2-1/2

[Event "BLR-chW U20 2019"]
[Site "Kobryn"]
[Date "2019.05.18"]
[Round "8.5"]
[White "Ilyuchyk, Yana"]
[Black "Staravoitava, Hanna"]
[Result "1-0"]
[ECO "B01"]
[WhiteElo "2137"]
[BlackElo "1733"]
[Annotator "NA"]
[PlyCount "111"]
[EventDate "2019.05.11"]
[EventType "tourn"]
[EventCountry "BLR"]
[SourceTitle "playchess.com"]
[Source "ChessBase"]
[SourceQuality "1"]
[TimeControl "40/5400+30:1800+30"]

1. e4 {[%emt 0:00:00]} d5 {[%emt 0:00:00]} 2. exd5 {[%emt 0:00:00]} Nf6 {[%emt 0:00:00]} 3. d4 {[%emt 0:00:00]} Bg4 {[%emt 0:00:00]} 4. Nf3 {[%emt 0:00:00]} Bxf3 {[%emt 0:00:00]} 5. Qxf3 {[%emt 0:00:08]} Qxd5 {[%emt 0:00:00]} 6. Be2 {[%emt 0:07:26]} Nc6 {[%emt 0:03:35]} 7. c3 {[%emt 0:01:32]} O-O-O {[%emt 0:01:18]} 8. O-O {[%emt 0:15:29]} e5 {[%emt 0:11:45]} 9. Qf5+ {[%emt 0:00:30]} Kb8 {[%emt 0:00:30]} 10. Bf3 {[%emt 1:09:55]} e4 {[%emt 0:00:30]} 11. Qxd5 {[%emt 0:00:00]} Rxd5 {[%emt 0:00:09]} 12. Be2 {[%emt 0:00:00]} Rd7 {[%emt 0:23:50]} 13. Bg5 {[%emt 0:00:00]} Be7 {[%emt 0:05:37]} 14. Nd2 {[%emt 0:00:00]} Re8 {[%emt 0:02:35]} 15. Bc4 {[%emt 0:00:00]} h6 {[%emt 0:02:25]} 16. Bf4 {[%emt 0:00:00]} Bd6 {[%emt 0:01:21]} 17. Bxd6 {[%emt 0:00:00]} Rxd6 {[%emt 0:14:53]} 18. Bxf7 {[%emt 0:00:00]} Re7 {[%emt 0:30:32]} 19. Bb3 {[%emt 0:04:30]} Na5 {[%emt 0:00:30]} 20. Rad1 {[%emt 0:00:00]} Nxb3 {[%emt 0:00:00]} 21. axb3 {[%emt 0:01:00]} b5 {[%emt 0:01:00]} 22. b4 {[%emt 0:00:00]} Nd5 {[%emt 0:00:00]} 23. Rde1 {[%emt 0:00:00]} Rde6 {[%emt 0:00:00]} 24. Nb3 {[%emt 0:00:00]} Ra6 {[%emt 0:00:00]} 25. g3 {[%emt 0:00:00]} Ra2 {[%emt 0:00:00]} 26. Rb1 {[%emt 0:00:00]} Rf7 {[%emt 0:00:00]} 27. Nc5 {[%emt 0:00:00]} Nf6 {[%emt 0:00:00]} 28. Rfe1 {[%emt 0:00:00]} Re7 {[%emt 0:00:00]} 29. Re2 {[%emt 0:00:00]} a5 {[%emt 0:00:00]} 30. bxa5 Rxa5 {[%emt 0:00:00]} 31. Rbe1 {[%emt 0:05:00]} Ra2 {[%emt 0:05:00]} 32. Nd3 {[%emt 0:00:30]} Rd7 {[%emt 0:00:00]} 33. Nb4 {[%emt 0:00:30]} Ra8 {[%emt 0:00:00]} 34. Kg2 {[%emt 0:00:00]} Kb7 {[%emt 0:00:00]} 35. f3 {[%emt 0:00:00]} exf3+ {[%emt 0:00:00]} 36. Kxf3 {[%emt 0:00:00]} Nd5 {[%emt 0:00:00]} 37. Nxd5 {[%emt 0:00:00]} Rxd5 {[%emt 0:00:00]} 38. Re5 {[%emt 0:00:00]} Rad8 {[%emt 0:00:00]} 39. Rxd5 {[%emt 0:00:00]} Rxd5 {[%emt 0:00:00]} 40. Re5 {[%emt 0:00:00]} Kc6 {[%emt 0:00:00]} 41. Re7 {[%emt 0:34:00]} Rg5 {[%emt 0:07:45]} 42. Kf4 {[%emt 0:00:00]} Rg6 {[%emt 0:00:30]} 43. h4 {[%emt 0:00:00]} Kd6 {[%emt 0:00:30]} 44. Rf7 {[%emt 0:00:00]} b4 {[%emt 0:00:30]} 45. cxb4 {[%emt 0:00:00]} h5 {[%emt 0:00:30]} 46. Kf3 {[%emt 0:00:00]} Kd5 {[%emt 0:21:54]} 47. Rxc7 {[%emt 0:00:00]} Kxd4 {[%emt 0:00:05]} 48. b5 {[%emt 0:00:00]} Rf6+ {[%emt 0:00:08]} 49. Kg2 {[%emt 0:00:00]} g6 {[%emt 0:00:06]} 50. Rc6 {[%emt 0:00:00]} Rf5 {[%emt 0:00:30]} 51. Rxg6 {[%emt 0:00:00]} Rxb5 {[%emt 0:00:13]} 52. Rg5 {[%emt 0:00:00]} Rxb2+ {[%emt 0:00:13]} 53. Kh3 {[%emt 0:00:00]} Ke4 {[%emt 0:00:43]} 54. Rxh5 {[%emt 0:00:00]} Rf2 {[%emt 0:00:42]} 55. Kg4 {[%emt 0:00:00]} Rf8 {[%emt 0:00:32]} 56. Rg5 {[%emt 0:00:00] Kd5 [%clk 0:00:00]} 1-0